[Event "*** Titled Tuesday Blitz"]
[Site "Chess.com"]
[Date "2020.10.27"]
[Round "9"]
[White "Omk124"]
[Black "barbara25"]
[Result "0-1"]
[WhiteElo "2392"]
[BlackElo "2282"]
[TimeControl "180+1"]
[EndTime "11:44:29 PDT"]
[Termination "barbara25 won by resignation"]

1. e4 {[%clk 0:03:00.9]} 1... b6 {[%clk 0:02:59.8]} 2. d4 {[%clk 0:03:00.3]}
2... Bb7 {[%clk 0:03:00.1]} 3. Nc3 {[%clk 0:02:56.9]} 3... e6 {[%clk 0:03:00.5]}
4. Nf3 {[%clk 0:02:56]} 4... Bb4 {[%clk 0:03:00.8]} 5. Bd3 {[%clk 0:02:55.7]}
5... Nf6 {[%clk 0:03:01.4]} 6. Ke2 {[%clk 0:02:55.7]} 6... Bxc3 {[%clk
0:02:58.9]} 7. bxc3 {[%clk 0:02:55.7]} 7... Nxe4 {[%clk 0:02:59.5]} 8. Be3
{[%clk 0:02:54.8]} 8... Nxc3+ {[%clk 0:02:59.3]} 9. Ke1 {[%clk 0:02:51.4]} 9...
Nxd1 {[%clk 0:03:00.2]} 10. Rxd1 {[%clk 0:02:51.5]} 10... Bxf3 {[%clk
0:02:59.6]} 11. gxf3 {[%clk 0:02:51.7]} 11... d5 {[%clk 0:02:57.6]} 12. Rg1
{[%clk 0:02:51.1]} 12... g6 {[%clk 0:02:56.7]} 13. Bg5 {[%clk 0:02:50.4]} 13...
f6 {[%clk 0:02:55.5]} 14. Bh6 {[%clk 0:02:49.6]} 14... Qe7 {[%clk 0:02:55]} 15.
Bc1 {[%clk 0:02:47.5]} 15... Nd7 {[%clk 0:02:52.3]} 16. f4 {[%clk 0:02:45.1]}
16... Qb4+ {[%clk 0:02:50.3]} 17. Kf1 {[%clk 0:02:44.5]} 17... Qxd4 {[%clk
0:02:48.8]} 18. Bxg6+ {[%clk 0:02:44.7]} 18... hxg6 {[%clk 0:02:43.7]} 19. Rxd4
{[%clk 0:02:45.6]} 19... Kf7 {[%clk 0:02:42.5]} 20. Rg2 {[%clk 0:02:42]} 20...
Rh3 {[%clk 0:02:38.4]} 21. Be3 {[%clk 0:02:34.4]} 21... Rah8 {[%clk 0:02:37.2]}
22. Kg1 {[%clk 0:02:30.9]} 22... c5 {[%clk 0:02:32]} 23. Rd1 {[%clk 0:02:30.8]}
23... d4 {[%clk 0:02:31.8]} 24. c3 {[%clk 0:02:29.8]} 24... e5 {[%clk
0:02:26.4]} 25. fxe5 {[%clk 0:02:27]} 25... fxe5 {[%clk 0:02:18.3]} 26. cxd4
{[%clk 0:02:27]} 26... exd4 {[%clk 0:02:16.1]} 27. Bg5 {[%clk 0:02:27.5]} 27...
Ne5 {[%clk 0:02:15]} 28. Bf4 {[%clk 0:02:24.2]} 28... Nf3+ {[%clk 0:02:11.5]}
29. Kh1 {[%clk 0:02:24.7]} 29... g5 {[%clk 0:02:09.3]} 30. Bg3 {[%clk
0:02:24.6]} 30... Kf6 {[%clk 0:02:07.1]} 31. Rd3 {[%clk 0:02:23.7]} 31... g4
{[%clk 0:02:06.5]} 32. Bc7 {[%clk 0:02:22.6]} 32... Re8 {[%clk 0:02:05.1]} 33.
Rxg4 {[%clk 0:02:16.7]} 33... Ne5 {[%clk 0:01:57.6]} 34. Bxe5+ {[%clk
0:02:13.4]} 34... Kf5 {[%clk 0:01:57.9]} 35. Rxh3 {[%clk 0:02:13.9]} 35... Kxg4
{[%clk 0:01:57.1]} 36. Rg3+ {[%clk 0:02:14.4]} 36... Kf5 {[%clk 0:01:56.5]} 37.
f4 {[%clk 0:02:15]} 37... Rd8 {[%clk 0:01:54.4]} 38. Rd3 {[%clk 0:02:06.2]}
38... Ke4 {[%clk 0:01:53.8]} 39. Rd1 {[%clk 0:02:06.1]} 39... c4 {[%clk
0:01:54.1]} 40. Kg2 {[%clk 0:02:03.1]} 40... c3 {[%clk 0:01:54.2]} 41. Kf2
{[%clk 0:02:03]} 41... c2 {[%clk 0:01:54.4]} 42. Re1+ {[%clk 0:02:00.8]} 42...
Kd3 {[%clk 0:01:54.1]} 43. f5 {[%clk 0:01:59.2]} 43... Rf8 {[%clk 0:01:47.8]}
44. f6 {[%clk 0:01:59.4]} 44... Kd2 {[%clk 0:01:47.9]} 45. Bf4+ {[%clk
0:01:59.6]} 45... Kc3 {[%clk 0:01:48]} 46. Bg5 {[%clk 0:01:59.3]} 46... d3
{[%clk 0:01:47.8]} 47. Re7 {[%clk 0:01:52.9]} 47... Kb2 {[%clk 0:01:40.6]} 48.
Rc7 {[%clk 0:01:48.9]} 48... Kb1 {[%clk 0:01:35.9]} 49. h4 {[%clk 0:01:47]}
49... Rxf6+ {[%clk 0:01:34.1]} 50. Bxf6 {[%clk 0:01:46.9]} 50... d2 {[%clk
0:01:33.8]} 51. Bg5 {[%clk 0:01:19.1]} 51... d1=Q {[%clk 0:01:31.7]} 52. Bf4
{[%clk 0:01:16.2]} 52... Qd4+ {[%clk 0:01:26.8]} 53. Kg3 {[%clk 0:01:15.6]}
53... Qd3+ {[%clk 0:01:25.4]} 54. Kg4 {[%clk 0:01:15.3]} 54... Qg6+ {[%clk
0:01:25.9]} 55. Bg5 {[%clk 0:01:13.9]} 55... Qe6+ {[%clk 0:01:22.7]} 56. Kh5
{[%clk 0:01:13.9]} 56... Qe5 {[%clk 0:01:22.7]} 57. Rc8 {[%clk 0:00:59.6]} 57...
Qe2+ {[%clk 0:01:22.4]} 0-1

[Event "*** Titled Tuesday Blitz"]
[Site "Chess.com"]
[Date "2020.10.27"]
[Round "9"]
[White "Training_Day"]
[Black "Matols"]
[Result "0-1"]
[WhiteElo "2382"]
[BlackElo "2248"]
[TimeControl "180+1"]
[EndTime "11:44:32 PDT"]
[Termination "Matols won on time"]

1. e4 {[%clk 0:02:59.5]} 1... e6 {[%clk 0:03:00]} 2. d3 {[%clk 0:02:56.9]} 2...
d5 {[%clk 0:02:59.4]} 3. Qe2 {[%clk 0:02:57.1]} 3... Nf6 {[%clk 0:02:45.4]} 4.
Nf3 {[%clk 0:02:56.2]} 4... c5 {[%clk 0:02:42]} 5. g3 {[%clk 0:02:55.9]} 5... g6
{[%clk 0:02:37.2]} 6. Bg2 {[%clk 0:02:54.2]} 6... Bg7 {[%clk 0:02:37.2]} 7. O-O
{[%clk 0:02:47.5]} 7... O-O {[%clk 0:02:37]} 8. c3 {[%clk 0:02:37.8]} 8... Nc6
{[%clk 0:02:35.3]} 9. e5 {[%clk 0:02:28.3]} 9... Nd7 {[%clk 0:02:33.9]} 10. Bf4
{[%clk 0:02:27.3]} 10... Re8 {[%clk 0:02:27.3]} 11. Re1 {[%clk 0:02:25.1]} 11...
f6 {[%clk 0:02:26.2]} 12. exf6 {[%clk 0:02:22]} 12... Qxf6 {[%clk 0:02:21.3]}
13. Nbd2 {[%clk 0:01:42.1]} 13... e5 {[%clk 0:02:04.3]} 14. Bg5 {[%clk
0:01:41.6]} 14... Qf7 {[%clk 0:02:03.1]} 15. Nb3 {[%clk 0:01:15.3]} 15... b6
{[%clk 0:01:55.4]} 16. Nfd2 {[%clk 0:00:41.3]} 16... Bb7 {[%clk 0:01:48.4]} 17.
c4 {[%clk 0:00:41]} 17... Nd4 {[%clk 0:01:42.6]} 18. Nxd4 {[%clk 0:00:36.8]}
18... exd4 {[%clk 0:01:28.7]} 19. Qf1 {[%clk 0:00:19.9]} 19... Ne5 {[%clk
0:01:26.6]} 20. f4 {[%clk 0:00:18.4]} 20... Ng4 {[%clk 0:01:22.9]} 21. cxd5
{[%clk 0:00:08]} 21... Ne3 {[%clk 0:01:20.4]} 22. Qf2 {[%clk 0:00:04.8]} 22...
Bxd5 {[%clk 0:01:14.4]} 23. Bxd5 {[%clk 0:00:03.7]} 23... Qxd5 {[%clk
0:01:14.5]} 24. Nf1 {[%clk 0:00:02.9]} 24... Ng4 {[%clk 0:01:09.8]} 25. Qg2
{[%clk 0:00:01.4]} 25... Qxg2+ {[%clk 0:01:04.8]} 26. Kxg2 {[%clk 0:00:02.3]}
26... h6 {[%clk 0:01:04.5]} 27. Bh4 {[%clk 0:00:01.9]} 27... Kf7 {[%clk
0:01:02.1]} 28. h3 {[%clk 0:00:02]} 28... Nf6 {[%clk 0:01:00.6]} 0-1

[Event "*** Titled Tuesday Blitz"]
[Site "Chess.com"]
[Date "2020.10.27"]
[Round "9"]
[White "Chamal_Gedgafov"]
[Black "ChessSwole"]
[Result "0-1"]
[WhiteElo "2142"]
[BlackElo "2381"]
[TimeControl "180+1"]
[EndTime "11:44:35 PDT"]
[Termination "ChessSwole won by checkmate"]

1. d4 {[%clk 0:03:00.9]} 1... Nf6 {[%clk 0:02:58.9]} 2. c4 {[%clk 0:03:00.4]}
2... g6 {[%clk 0:02:58.5]} 3. Nc3 {[%clk 0:02:59.4]} 3... Bg7 {[%clk 0:02:58.4]}
4. e4 {[%clk 0:02:58.9]} 4... d6 {[%clk 0:02:58.5]} 5. Nf3 {[%clk 0:02:59.2]}
5... O-O {[%clk 0:02:58.2]} 6. Be2 {[%clk 0:02:59.8]} 6... e5 {[%clk 0:02:57.2]}
7. d5 {[%clk 0:03:00.4]} 7... a5 {[%clk 0:02:56.8]} 8. Be3 {[%clk 0:03:01]} 8...
Ng4 {[%clk 0:02:54.5]} 9. Bg5 {[%clk 0:03:00.6]} 9... f6 {[%clk 0:02:51.7]} 10.
Bh4 {[%clk 0:03:00.4]} 10... Qe8 {[%clk 0:02:49.9]} 11. Nd2 {[%clk 0:02:59.8]}
11... f5 {[%clk 0:02:48.9]} 12. O-O {[%clk 0:02:53.5]} 12... Na6 {[%clk
0:02:46.4]} 13. Bxg4 {[%clk 0:02:45.6]} 13... fxg4 {[%clk 0:02:47.3]} 14. Bg5
{[%clk 0:02:44.9]} 14... Rf4 {[%clk 0:02:29.6]} 15. g3 {[%clk 0:02:39.2]} 15...
Rf7 {[%clk 0:02:25.7]} 16. a3 {[%clk 0:02:32.4]} 16... Nc5 {[%clk 0:02:23.5]}
17. Qc2 {[%clk 0:02:27.8]} 17... a4 {[%clk 0:02:20.4]} 18. Be3 {[%clk
0:02:08.3]} 18... b6 {[%clk 0:02:17.4]} 19. b4 {[%clk 0:02:03.1]} 19... axb3
{[%clk 0:02:17.2]} 20. Nxb3 {[%clk 0:02:03.5]} 20... Bd7 {[%clk 0:02:09.9]} 21.
Nxc5 {[%clk 0:02:00.3]} 21... bxc5 {[%clk 0:02:10.8]} 22. a4 {[%clk 0:01:58.3]}
22... Bc8 {[%clk 0:02:05.6]} 23. a5 {[%clk 0:01:53.1]} 23... Ba6 {[%clk
0:02:05.6]} 24. Nb5 {[%clk 0:01:52.5]} 24... Qd7 {[%clk 0:01:55.7]} 25. Rfb1
{[%clk 0:01:50.3]} 25... Rff8 {[%clk 0:01:54.8]} 26. Qd2 {[%clk 0:01:49.5]}
26... Rfb8 {[%clk 0:01:52.9]} 27. Qe2 {[%clk 0:01:35]} 27... Bf6 {[%clk
0:01:49.1]} 28. Rb2 {[%clk 0:01:29]} 28... h5 {[%clk 0:01:44]} 29. Rab1 {[%clk
0:01:27.1]} 29... Kg7 {[%clk 0:01:41.8]} 30. Bd2 {[%clk 0:01:25.1]} 30... Rh8
{[%clk 0:01:34.4]} 31. Be3 {[%clk 0:01:09.9]} 31... h4 {[%clk 0:01:34.4]} 32.
Qd2 {[%clk 0:01:09.1]} 32... Rh5 {[%clk 0:01:32.2]} 33. Na3 {[%clk 0:01:04.6]}
33... Rah8 {[%clk 0:01:30.9]} 34. Qc3 {[%clk 0:00:58.3]} 34... g5 {[%clk
0:01:22.7]} 35. Nb5 {[%clk 0:00:53]} 35... Kg6 {[%clk 0:01:21.9]} 36. Na7 {[%clk
0:00:52.2]} 36... Qh7 {[%clk 0:01:21]} 37. Qd2 {[%clk 0:00:19.8]} 37... Bxc4
{[%clk 0:01:20]} 38. Rc1 {[%clk 0:00:17.9]} 38... Ba6 {[%clk 0:01:18.3]} 39. Nc6
{[%clk 0:00:17.6]} 39... hxg3 {[%clk 0:01:12.9]} 40. fxg3 {[%clk 0:00:16.8]}
40... Rh3 {[%clk 0:01:12.2]} 41. Rcc2 {[%clk 0:00:15.8]} 41... Rxg3+ {[%clk
0:01:11.5]} 42. hxg3 {[%clk 0:00:16.4]} 42... Qh1+ {[%clk 0:01:12.4]} 43. Kf2
{[%clk 0:00:16.4]} 43... Rh2# {[%clk 0:01:13.3]} 0-1

[Event "*** Titled Tuesday Blitz"]
[Site "Chess.com"]
[Date "2020.10.27"]
[Round "9"]
[White "queen_iryna"]
[Black "IMprovidence"]
[Result "1-0"]
[WhiteElo "2310"]
[BlackElo "2420"]
[TimeControl "180+1"]
[EndTime "11:44:44 PDT"]
[Termination "queen_iryna won by resignation"]

1. e4 {[%clk 0:03:00.9]} 1... c5 {[%clk 0:03:00.1]} 2. Nf3 {[%clk 0:03:00.6]}
2... e6 {[%clk 0:03:00.5]} 3. c4 {[%clk 0:02:59]} 3... d5 {[%clk 0:02:52.4]} 4.
exd5 {[%clk 0:02:53.3]} 4... exd5 {[%clk 0:02:53.3]} 5. cxd5 {[%clk 0:02:53.5]}
5... Nf6 {[%clk 0:02:50.5]} 6. Nc3 {[%clk 0:02:50.9]} 6... a6 {[%clk 0:02:43.9]}
7. d4 {[%clk 0:02:13.4]} 7... Nxd5 {[%clk 0:02:41.8]} 8. Bc4 {[%clk 0:02:05.2]}
8... Nxc3 {[%clk 0:02:40.2]} 9. bxc3 {[%clk 0:02:06.1]} 9... cxd4 {[%clk
0:02:40.3]} 10. O-O {[%clk 0:02:00.7]} 10... Be7 {[%clk 0:02:39.8]} 11. cxd4
{[%clk 0:01:32]} 11... O-O {[%clk 0:02:38.2]} 12. Re1 {[%clk 0:01:29]} 12... Nd7
{[%clk 0:02:25.6]} 13. Bf4 {[%clk 0:01:08.4]} 13... Nf6 {[%clk 0:02:20.8]} 14.
Qe2 {[%clk 0:01:02.8]} 14... Bd6 {[%clk 0:02:15.7]} 15. Ne5 {[%clk 0:00:52]}
15... b5 {[%clk 0:02:06.4]} 16. Bb3 {[%clk 0:00:39.9]} 16... Bb7 {[%clk
0:01:26.1]} 17. Nxf7 {[%clk 0:00:38.8]} 17... Rxf7 {[%clk 0:01:10.8]} 18. Bxf7+
{[%clk 0:00:38.6]} 18... Kh8 {[%clk 0:01:09.4]} 19. Bxd6 {[%clk 0:00:35]} 19...
Qxd6 {[%clk 0:01:10.3]} 20. Qe5 {[%clk 0:00:33.1]} 20... Qc6 {[%clk 0:01:05.3]}
21. f3 {[%clk 0:00:33.4]} 21... h6 {[%clk 0:00:55.7]} 22. Bb3 {[%clk 0:00:32.1]}
22... Rd8 {[%clk 0:00:44]} 23. Rac1 {[%clk 0:00:30.5]} 23... Qd7 {[%clk
0:00:36.5]} 24. Rc7 {[%clk 0:00:27.1]} 24... Qxd4+ {[%clk 0:00:26.8]} 25. Qxd4
{[%clk 0:00:28]} 25... Rxd4 {[%clk 0:00:27.4]} 26. Rxb7 {[%clk 0:00:27.7]} 26...
Kh7 {[%clk 0:00:27.3]} 27. Bc2+ {[%clk 0:00:27.2]} 1-0

[Event "*** Titled Tuesday Blitz"]
[Site "Chess.com"]
[Date "2020.10.27"]
[Round "9"]
[White "maxip32"]
[Black "Aygehovit1992"]
[Result "0-1"]
[WhiteElo "2424"]
[BlackElo "2645"]
[TimeControl "180+1"]
[EndTime "11:44:46 PDT"]
[Termination "Aygehovit1992 won on time"]

1. e4 {[%clk 0:03:00.9]} 1... c5 {[%clk 0:02:57]} 2. Nf3 {[%clk 0:03:00.2]} 2...
d6 {[%clk 0:02:57.3]} 3. d4 {[%clk 0:02:59.4]} 3... cxd4 {[%clk 0:02:58.2]} 4.
Nxd4 {[%clk 0:02:54.7]} 4... Nf6 {[%clk 0:02:59.1]} 5. Nc3 {[%clk 0:02:54.7]}
5... Nc6 {[%clk 0:02:58.2]} 6. g3 {[%clk 0:02:49.2]} 6... g6 {[%clk 0:02:56.4]}
7. Bg2 {[%clk 0:02:48.4]} 7... Nxd4 {[%clk 0:02:56.6]} 8. Qxd4 {[%clk
0:02:47.7]} 8... Bg7 {[%clk 0:02:57.2]} 9. e5 {[%clk 0:02:46.1]} 9... Nd7 {[%clk
0:02:56.4]} 10. O-O {[%clk 0:02:32.9]} 10... Nxe5 {[%clk 0:02:54.2]} 11. Qb4
{[%clk 0:02:31.4]} 11... O-O {[%clk 0:02:53.6]} 12. h3 {[%clk 0:02:27.1]} 12...
a5 {[%clk 0:02:52.6]} 13. Qb5 {[%clk 0:02:24.3]} 13... Rb8 {[%clk 0:02:40.4]}
14. Be3 {[%clk 0:02:21.3]} 14... Bd7 {[%clk 0:02:40.5]} 15. Qb6 {[%clk
0:02:17.8]} 15... Nc4 {[%clk 0:02:38.8]} 16. Qxd8 {[%clk 0:02:15.5]} 16... Rfxd8
{[%clk 0:02:39.7]} 17. Nd5 {[%clk 0:01:57.4]} 17... Nxe3 {[%clk 0:02:36.5]} 18.
fxe3 {[%clk 0:01:57]} 18... Kf8 {[%clk 0:02:36.3]} 19. c3 {[%clk 0:01:53.5]}
19... b5 {[%clk 0:02:33.3]} 20. h4 {[%clk 0:01:46.8]} 20... b4 {[%clk
0:02:32.4]} 21. Rf2 {[%clk 0:01:44.6]} 21... Be5 {[%clk 0:02:28.8]} 22. Raf1
{[%clk 0:01:41.9]} 22... f6 {[%clk 0:02:29]} 23. Kh2 {[%clk 0:01:35.2]} 23...
bxc3 {[%clk 0:02:16.5]} 24. bxc3 {[%clk 0:01:36.1]} 24... a4 {[%clk 0:02:12]}
25. h5 {[%clk 0:01:07]} 25... a3 {[%clk 0:02:11.6]} 26. Be4 {[%clk 0:01:04.3]}
26... gxh5 {[%clk 0:02:05.2]} 27. Kg2 {[%clk 0:00:59.7]} 27... Rb2 {[%clk
0:02:04.7]} 28. Rxb2 {[%clk 0:00:53.8]} 28... axb2 {[%clk 0:02:05.6]} 29. Bxh7
{[%clk 0:00:54.1]} 29... Ra8 {[%clk 0:02:03.2]} 30. Bb1 {[%clk 0:00:53.5]} 30...
Bc6 {[%clk 0:02:01.1]} 31. e4 {[%clk 0:00:53.6]} 31... Ra3 {[%clk 0:01:48.1]}
32. Rf3 {[%clk 0:00:43.2]} 32... Kf7 {[%clk 0:01:21.7]} 33. Kf2 {[%clk
0:00:22.5]} 33... e6 {[%clk 0:01:17.5]} 34. Nb4 {[%clk 0:00:21.1]} 34... Bb5
{[%clk 0:01:05]} 35. Nc2 {[%clk 0:00:03.6]} 35... Rxc3 {[%clk 0:01:04.6]} 36.
Rxc3 {[%clk 0:00:03.4]} 36... Bxc3 {[%clk 0:01:05.5]} 0-1

[Event "*** Titled Tuesday Blitz"]
[Site "Chess.com"]
[Date "2020.10.27"]
[Round "9"]
[White "keepitcoming"]
[Black "CM_rui"]
[Result "1-0"]
[WhiteElo "2544"]
[BlackElo "2362"]
[TimeControl "180+1"]
[EndTime "11:44:46 PDT"]
[Termination "keepitcoming won by checkmate"]

1. d4 {[%clk 0:03:00.9]} 1... Nf6 {[%clk 0:02:58.9]} 2. c4 {[%clk 0:02:53.1]}
2... e6 {[%clk 0:02:59.8]} 3. Nc3 {[%clk 0:02:52.4]} 3... Bb4 {[%clk 0:03:00.2]}
4. e3 {[%clk 0:02:52.6]} 4... O-O {[%clk 0:03:00.4]} 5. Ne2 {[%clk 0:02:52.7]}
5... d6 {[%clk 0:03:00.8]} 6. a3 {[%clk 0:02:52.9]} 6... Bxc3+ {[%clk
0:03:01.5]} 7. Nxc3 {[%clk 0:02:53.3]} 7... Nbd7 {[%clk 0:03:02.3]} 8. Bd3
{[%clk 0:02:53.4]} 8... e5 {[%clk 0:03:03]} 9. O-O {[%clk 0:02:53.3]} 9... Qe7
{[%clk 0:03:03.2]} 10. Qc2 {[%clk 0:02:45.4]} 10... h6 {[%clk 0:02:59.6]} 11. b4
{[%clk 0:02:44.6]} 11... a5 {[%clk 0:02:59.3]} 12. Bb2 {[%clk 0:02:44.3]} 12...
b6 {[%clk 0:02:57.4]} 13. Nb5 {[%clk 0:02:32.4]} 13... e4 {[%clk 0:02:44.2]} 14.
Be2 {[%clk 0:02:02.6]} 14... c6 {[%clk 0:02:44.2]} 15. Nc3 {[%clk 0:02:01.4]}
15... d5 {[%clk 0:02:44.5]} 16. cxd5 {[%clk 0:01:52.3]} 16... cxd5 {[%clk
0:02:45.4]} 17. Qb3 {[%clk 0:01:52]} 17... Bb7 {[%clk 0:02:40.1]} 18. bxa5
{[%clk 0:01:44.6]} 18... bxa5 {[%clk 0:02:35.7]} 19. Qxb7 {[%clk 0:01:36]} 19...
Rab8 {[%clk 0:02:33.4]} 20. Nxd5 {[%clk 0:01:32.9]} 20... Nxd5 {[%clk
0:02:30.7]} 21. Qxd5 {[%clk 0:01:31.6]} 21... Rxb2 {[%clk 0:02:31.2]} 22. Rfe1
{[%clk 0:01:17.1]} 22... a4 {[%clk 0:02:26.3]} 23. Qc6 {[%clk 0:01:10.3]} 23...
Nb6 {[%clk 0:02:09.6]} 24. Bb5 {[%clk 0:01:06.8]} 24... Qh4 {[%clk 0:01:49.9]}
25. Rf1 {[%clk 0:01:02]} 25... Nc8 {[%clk 0:01:42.2]} 26. Bxa4 {[%clk
0:00:59.8]} 26... Ne7 {[%clk 0:01:42.3]} 27. Qd7 {[%clk 0:00:57.3]} 27... Ng6
{[%clk 0:01:38.4]} 28. Rac1 {[%clk 0:00:56.9]} 28... Qg5 {[%clk 0:01:35.9]} 29.
Rc5 {[%clk 0:00:54.8]} 29... f5 {[%clk 0:01:22]} 30. Bc6 {[%clk 0:00:51.7]}
30... Qg4 {[%clk 0:00:59.5]} 31. h3 {[%clk 0:00:48.2]} 31... Qe2 {[%clk
0:00:59.4]} 32. Bd5+ {[%clk 0:00:45.3]} 32... Kh7 {[%clk 0:00:58.1]} 33. Rc7
{[%clk 0:00:44.8]} 33... Qxf1+ {[%clk 0:00:19]} 34. Kxf1 {[%clk 0:00:42.6]}
34... Rb1+ {[%clk 0:00:19.4]} 35. Ke2 {[%clk 0:00:43.1]} 35... Rfb8 {[%clk
0:00:15.7]} 36. Qxg7# {[%clk 0:00:40.5]} 1-0

[Event "*** Titled Tuesday Blitz"]
[Site "Chess.com"]
[Date "2020.10.27"]
[Round "9"]
[White "Akhayan"]
[Black "MIJuanReyesRosa"]
[Result "1-0"]
[WhiteElo "2266"]
[BlackElo "2081"]
[TimeControl "180+1"]
[EndTime "11:44:46 PDT"]
[Termination "Akhayan won on time"]

1. d4 {[%clk 0:03:00.9]} 1... g6 {[%clk 0:02:58.8]} 2. Nf3 {[%clk 0:03:00.9]}
2... Bg7 {[%clk 0:02:52.2]} 3. g3 {[%clk 0:03:00.9]} 3... c6 {[%clk 0:02:42.8]}
4. Bg2 {[%clk 0:03:01.1]} 4... d5 {[%clk 0:02:43.1]} 5. O-O {[%clk 0:03:01.2]}
5... Nf6 {[%clk 0:02:43]} 6. c4 {[%clk 0:03:01.3]} 6... O-O {[%clk 0:02:34.9]}
7. cxd5 {[%clk 0:03:01]} 7... cxd5 {[%clk 0:02:33.1]} 8. Ne5 {[%clk 0:03:01.4]}
8... Nc6 {[%clk 0:02:18.8]} 9. Nxc6 {[%clk 0:03:00.8]} 9... bxc6 {[%clk
0:02:18.7]} 10. Nc3 {[%clk 0:03:00.2]} 10... Bf5 {[%clk 0:02:08.6]} 11. Bf4
{[%clk 0:02:59.8]} 11... Ne4 {[%clk 0:01:50.5]} 12. Nxe4 {[%clk 0:02:59.5]}
12... Bxe4 {[%clk 0:01:44.9]} 13. Bxe4 {[%clk 0:02:58.4]} 13... dxe4 {[%clk
0:01:44.8]} 14. Be3 {[%clk 0:02:42.6]} 14... e5 {[%clk 0:01:25.6]} 15. dxe5
{[%clk 0:02:38.7]} 15... Bxe5 {[%clk 0:01:23.9]} 16. Qc2 {[%clk 0:02:37]} 16...
f5 {[%clk 0:01:11.3]} 17. Rfd1 {[%clk 0:02:34]} 17... Qf6 {[%clk 0:01:09]} 18.
Rab1 {[%clk 0:02:24.3]} 18... Rf7 {[%clk 0:00:56.2]} 19. Qc4 {[%clk 0:02:21.7]}
19... Kg7 {[%clk 0:00:53]} 20. b4 {[%clk 0:02:20.2]} 20... Rd8 {[%clk
0:00:45.1]} 21. Qb3 {[%clk 0:02:13.5]} 21... Rxd1+ {[%clk 0:00:42]} 22. Rxd1
{[%clk 0:02:12.7]} 22... Rb7 {[%clk 0:00:37.4]} 23. Qc4 {[%clk 0:02:08.6]} 23...
g5 {[%clk 0:00:27]} 24. Bc5 {[%clk 0:02:03.7]} 24... Qf7 {[%clk 0:00:20.4]} 25.
Qxf7+ {[%clk 0:01:58.2]} 25... Rxf7 {[%clk 0:00:19.5]} 26. a4 {[%clk 0:01:57.9]}
26... f4 {[%clk 0:00:19.1]} 27. g4 {[%clk 0:01:52.5]} 27... f3 {[%clk
0:00:18.8]} 28. e3 {[%clk 0:01:52.1]} 28... Rb7 {[%clk 0:00:17.5]} 29. h3 {[%clk
0:01:49.3]} 29... Kf6 {[%clk 0:00:17.2]} 30. Kf1 {[%clk 0:01:33.3]} 30... Ke6
{[%clk 0:00:16.8]} 31. Rd8 {[%clk 0:01:31.2]} 31... Rd7 {[%clk 0:00:15.5]} 32.
Rxd7 {[%clk 0:01:30.8]} 32... Kxd7 {[%clk 0:00:15.2]} 33. Bxa7 {[%clk 0:01:31]}
33... Bc3 {[%clk 0:00:13.6]} 34. Bc5 {[%clk 0:01:29.6]} 34... Ke6 {[%clk
0:00:12.3]} 35. Kg1 {[%clk 0:01:23.7]} 35... h6 {[%clk 0:00:10.6]} 36. Bf8
{[%clk 0:01:22.7]} 36... Kd5 {[%clk 0:00:07.3]} 37. Bxh6 {[%clk 0:01:21.1]}
37... Bf6 {[%clk 0:00:07.1]} 38. a5 {[%clk 0:01:16]} 38... Kc4 {[%clk
0:00:06.2]} 39. a6 {[%clk 0:01:15.7]} 1-0

[Event "*** Titled Tuesday Blitz"]
[Site "Chess.com"]
[Date "2020.10.27"]
[Round "9"]
[White "Michaelson_11"]
[Black "Kotofeyca"]
[Result "0-1"]
[WhiteElo "2137"]
[BlackElo "2354"]
[TimeControl "180+1"]
[EndTime "11:44:52 PDT"]
[Termination "Kotofeyca won by checkmate"]

1. e4 {[%clk 0:03:00.4]} 1... c5 {[%clk 0:02:59.4]} 2. Nf3 {[%clk 0:02:59.1]}
2... d6 {[%clk 0:02:59]} 3. d4 {[%clk 0:03:00]} 3... cxd4 {[%clk 0:02:59.7]} 4.
Nxd4 {[%clk 0:03:00.9]} 4... Nf6 {[%clk 0:03:00.1]} 5. Nc3 {[%clk 0:03:01.8]}
5... a6 {[%clk 0:03:00.5]} 6. Bd3 {[%clk 0:03:01.6]} 6... e5 {[%clk 0:02:57.9]}
7. Nde2 {[%clk 0:03:01.4]} 7... b5 {[%clk 0:02:56.6]} 8. O-O {[%clk 0:03:02.3]}
8... Bb7 {[%clk 0:02:56.5]} 9. Ng3 {[%clk 0:02:58.7]} 9... Nbd7 {[%clk
0:02:54.2]} 10. Bg5 {[%clk 0:02:47.3]} 10... h6 {[%clk 0:02:50]} 11. Bxf6 {[%clk
0:02:41.5]} 11... Nxf6 {[%clk 0:02:49.4]} 12. Nf5 {[%clk 0:02:41.7]} 12... g6
{[%clk 0:02:41.9]} 13. Ne3 {[%clk 0:02:36.5]} 13... Bg7 {[%clk 0:02:36.7]} 14.
Ncd5 {[%clk 0:02:13.7]} 14... Nxd5 {[%clk 0:02:32.7]} 15. Nxd5 {[%clk
0:02:08.3]} 15... Bxd5 {[%clk 0:02:32.4]} 16. exd5 {[%clk 0:02:08.3]} 16... f5
{[%clk 0:02:32.2]} 17. Qe2 {[%clk 0:02:01.6]} 17... O-O {[%clk 0:02:24.7]} 18.
c3 {[%clk 0:01:55.9]} 18... e4 {[%clk 0:02:20.2]} 19. Bc2 {[%clk 0:01:46.1]}
19... Qh4 {[%clk 0:02:19.6]} 20. Rad1 {[%clk 0:01:42.2]} 20... Rae8 {[%clk
0:02:18.9]} 21. g3 {[%clk 0:01:36]} 21... Qh3 {[%clk 0:02:17.6]} 22. Qe3 {[%clk
0:01:29]} 22... Kh7 {[%clk 0:02:08.1]} 23. f4 {[%clk 0:01:24.4]} 23... exf3
{[%clk 0:02:03.5]} 24. Qxf3 {[%clk 0:01:24.3]} 24... Re5 {[%clk 0:01:54.3]} 25.
Qg2 {[%clk 0:01:10.8]} 25... Qg4 {[%clk 0:01:46.6]} 26. h3 {[%clk 0:00:54.3]}
26... Qc4 {[%clk 0:01:39.9]} 27. Bb3 {[%clk 0:00:49.1]} 27... Qc5+ {[%clk
0:01:33.7]} 28. Qf2 {[%clk 0:00:38.9]} 28... Re3 {[%clk 0:01:33.4]} 29. Kg2
{[%clk 0:00:33.9]} 29... Rfe8 {[%clk 0:01:32.4]} 30. Rd2 {[%clk 0:00:20.9]}
30... a5 {[%clk 0:01:30.5]} 31. Rfd1 {[%clk 0:00:20.1]} 31... a4 {[%clk
0:01:29.5]} 32. Bc2 {[%clk 0:00:20.1]} 32... Be5 {[%clk 0:01:28.2]} 33. g4
{[%clk 0:00:15.1]} 33... Rg3+ {[%clk 0:01:27.9]} 34. Kf1 {[%clk 0:00:14.6]}
34... Qc4+ {[%clk 0:01:22.4]} 35. Bd3 {[%clk 0:00:13.8]} 35... Qxa2 {[%clk
0:01:21.9]} 36. gxf5 {[%clk 0:00:13.4]} 36... Rf8 {[%clk 0:01:22.1]} 37. Re2
{[%clk 0:00:06.5]} 37... Qxd5 {[%clk 0:01:19.7]} 38. fxg6+ {[%clk 0:00:06]}
38... Kg7 {[%clk 0:01:18.5]} 39. Qxf8+ {[%clk 0:00:06]} 39... Kxf8 {[%clk
0:01:19.2]} 40. Rf2+ {[%clk 0:00:06.4]} 40... Kg8 {[%clk 0:01:11.7]} 41. Be2
{[%clk 0:00:04.5]} 41... Qh1# {[%clk 0:01:11]} 0-1